[Event "Early-Titled-Tuesday-Blitz-July-09-2024"]
[Site "Chess.com"]
[Date "2024.07.09"]
[Round "7"]
[White "bazar-wokzal"]
[Black "Chessgod9oninsta"]
[Result "1-0"]
[WhiteElo "2614"]
[BlackElo "2768"]
[TimeControl "180+1"]
[EndTime "9:20:01 PDT"]
[Termination "bazar-wokzal won by resignation"]

1. e4 {[%clk 0:03:00.9]} 1... e5 {[%clk 0:02:57.1]} 2. Bc4 {[%clk 0:02:59.8]}
2... Nf6 {[%clk 0:02:56.5]} 3. d3 {[%clk 0:02:59.3]} 3... c6 {[%clk 0:02:56.8]}
4. Nf3 {[%clk 0:02:59]} 4... d5 {[%clk 0:02:57.4]} 5. Bb3 {[%clk 0:02:59.4]}
5... Bb4+ {[%clk 0:02:57]} 6. c3 {[%clk 0:02:59.3]} 6... Bd6 {[%clk 0:02:56.9]}
7. Bg5 {[%clk 0:02:59.4]} 7... Be6 {[%clk 0:02:53.7]} 8. d4 {[%clk 0:02:59.2]}
8... Nbd7 {[%clk 0:02:45.1]} 9. exd5 {[%clk 0:02:55.6]} 9... cxd5 {[%clk
0:02:40]} 10. dxe5 {[%clk 0:02:55.2]} 10... Nxe5 {[%clk 0:02:40.6]} 11. Nxe5
{[%clk 0:02:54.7]} 11... Bxe5 {[%clk 0:02:41.5]} 12. Nd2 {[%clk 0:02:53.9]}
12... O-O {[%clk 0:02:40.7]} 13. Nf3 {[%clk 0:02:53.8]} 13... Bc7 {[%clk
0:02:38]} 14. Qd4 {[%clk 0:02:49.7]} 14... Bb6 {[%clk 0:02:33.5]} 15. Qh4 {[%clk
0:02:46.3]} 15... h6 {[%clk 0:02:21.1]} 16. Bxf6 {[%clk 0:02:45.7]} 16... Qxf6
{[%clk 0:02:22]} 17. Qxf6 {[%clk 0:02:45.8]} 17... gxf6 {[%clk 0:02:22.9]} 18.
O-O-O {[%clk 0:02:34.9]} 18... Rad8 {[%clk 0:02:17]} 19. Nd4 {[%clk 0:02:33.7]}
19... Rfe8 {[%clk 0:02:14.8]} 20. Rhe1 {[%clk 0:02:32.8]} 20... Kg7 {[%clk
0:02:08.1]} 21. Re3 {[%clk 0:02:32.4]} 21... Bc7 {[%clk 0:02:04.4]} 22. g3
{[%clk 0:02:14.9]} 22... f5 {[%clk 0:01:59.2]} 23. f4 {[%clk 0:02:12.5]} 23...
Kf6 {[%clk 0:01:55.8]} 24. Bc2 {[%clk 0:02:07.1]} 24... Bd7 {[%clk 0:01:47.2]}
25. Rde1 {[%clk 0:02:05]} 25... Rxe3 {[%clk 0:01:43.4]} 26. Rxe3 {[%clk
0:02:05.2]} 26... Bb6 {[%clk 0:01:43.2]} 27. Re5 {[%clk 0:02:02.9]} 27... Be6
{[%clk 0:01:38.5]} 28. Kd2 {[%clk 0:01:46.7]} 28... h5 {[%clk 0:01:37.4]} 29. b4
{[%clk 0:01:31]} 29... h4 {[%clk 0:01:34.5]} 30. a4 {[%clk 0:01:15]} 30... hxg3
{[%clk 0:01:33.5]} 31. hxg3 {[%clk 0:01:15.2]} 31... a5 {[%clk 0:01:10.1]} 32.
bxa5 {[%clk 0:01:03.9]} 32... Bxa5 {[%clk 0:01:08.1]} 33. Bxf5 {[%clk
0:00:53.9]} 33... Rc8 {[%clk 0:00:33]} 34. Bxe6 {[%clk 0:00:45.3]} 34... Bxc3+
{[%clk 0:00:22.1]} 35. Kd3 {[%clk 0:00:44.5]} 35... fxe6 {[%clk 0:00:22.2]} 36.
Rxe6+ {[%clk 0:00:41.7]} 36... Kf7 {[%clk 0:00:22.7]} 37. Rb6 {[%clk 0:00:38.7]}
37... Be1 {[%clk 0:00:22.7]} 38. Rxb7+ {[%clk 0:00:37.4]} 38... Kf6 {[%clk
0:00:23.1]} 39. g4 {[%clk 0:00:35.2]} 39... Rc4 {[%clk 0:00:23]} 40. g5+ {[%clk
0:00:34.2]} 40... Kg6 {[%clk 0:00:22.9]} 41. Rb6+ {[%clk 0:00:33.9]} 41... Kh5
{[%clk 0:00:23.1]} 42. Rh6+ {[%clk 0:00:31.6]} 42... Kg4 {[%clk 0:00:22.6]} 43.
g6 {[%clk 0:00:31.9]} 43... Rc8 {[%clk 0:00:11]} 44. g7 {[%clk 0:00:25.3]} 44...
Rg8 {[%clk 0:00:10.4]} 45. Ne6 {[%clk 0:00:24.8]} 1-0

[Event "Early-Titled-Tuesday-Blitz-July-09-2024"]
[Site "Chess.com"]
[Date "2024.07.09"]
[Round "7"]
[White "AlexandraSamaganova"]
[Black "Kotofeyca"]
[Result "0-1"]
[WhiteElo "2360"]
[BlackElo "2504"]
[TimeControl "180+1"]
[EndTime "9:20:01 PDT"]
[Termination "Kotofeyca won by checkmate"]

1. c4 {[%clk 0:03:00.9]} 1... c6 {[%clk 0:02:59.8]} 2. e4 {[%clk 0:02:59.6]}
2... d5 {[%clk 0:03:00.7]} 3. exd5 {[%clk 0:02:59.6]} 3... cxd5 {[%clk
0:03:00.4]} 4. d4 {[%clk 0:02:59.6]} 4... Nf6 {[%clk 0:02:59.3]} 5. Nc3 {[%clk
0:02:58.4]} 5... Nc6 {[%clk 0:02:58.8]} 6. Nf3 {[%clk 0:02:57.4]} 6... e6 {[%clk
0:02:58.8]} 7. Bg5 {[%clk 0:02:55.5]} 7... Be7 {[%clk 0:02:58.7]} 8. Bd3 {[%clk
0:02:52.4]} 8... dxc4 {[%clk 0:02:57.8]} 9. Bxc4 {[%clk 0:02:52.3]} 9... O-O
{[%clk 0:02:57.9]} 10. O-O {[%clk 0:02:52.5]} 10... b6 {[%clk 0:02:49.4]} 11.
Re1 {[%clk 0:02:48.7]} 11... Bb7 {[%clk 0:02:46.4]} 12. Rc1 {[%clk 0:02:48.1]}
12... Rc8 {[%clk 0:02:45.7]} 13. Bb3 {[%clk 0:02:46.3]} 13... Nb4 {[%clk
0:02:42]} 14. Ne5 {[%clk 0:02:42.9]} 14... Nfd5 {[%clk 0:02:30.3]} 15. Bxe7
{[%clk 0:02:37]} 15... Qxe7 {[%clk 0:02:27.9]} 16. Qg4 {[%clk 0:02:19.2]} 16...
Nxc3 {[%clk 0:02:05.7]} 17. bxc3 {[%clk 0:02:13.2]} 17... Nd5 {[%clk 0:02:04.6]}
18. Qg3 {[%clk 0:02:04.9]} 18... Rc7 {[%clk 0:01:57.4]} 19. c4 {[%clk
0:01:59.2]} 19... Nf6 {[%clk 0:01:51.1]} 20. d5 {[%clk 0:01:50.3]} 20... Rd8
{[%clk 0:01:23.5]} 21. dxe6 {[%clk 0:01:23.7]} 21... Qxe6 {[%clk 0:01:23.4]} 22.
c5 {[%clk 0:00:46.7]} 22... Qf5 {[%clk 0:01:21.2]} 23. Nxf7 {[%clk 0:00:17.9]}
23... Rxf7 {[%clk 0:01:16.2]} 24. Qc7 {[%clk 0:00:17.6]} 24... Qd7 {[%clk
0:01:01.4]} 25. Bxf7+ {[%clk 0:00:07]} 25... Kxf7 {[%clk 0:00:59.5]} 26. Qxd7+
{[%clk 0:00:07.4]} 26... Rxd7 {[%clk 0:00:57.2]} 27. c6 {[%clk 0:00:08]} 27...
Bxc6 {[%clk 0:00:48.5]} 28. Rxc6 {[%clk 0:00:07.3]} 28... Kg6 {[%clk 0:00:45.7]}
29. f3 {[%clk 0:00:04.2]} 29... Rd2 {[%clk 0:00:45.5]} 30. a4 {[%clk 0:00:03.8]}
30... Ra2 {[%clk 0:00:45.1]} 31. Rc4 {[%clk 0:00:03.7]} 31... h5 {[%clk
0:00:42.9]} 32. h3 {[%clk 0:00:03]} 32... Nd5 {[%clk 0:00:40.6]} 33. Re6+ {[%clk
0:00:02.9]} 33... Kf7 {[%clk 0:00:38.7]} 34. Rd6 {[%clk 0:00:02.5]} 34... Ne3
{[%clk 0:00:33.9]} 35. Rc7+ {[%clk 0:00:02.6]} 35... Kg8 {[%clk 0:00:33.1]} 36.
Rd8+ {[%clk 0:00:02.3]} 36... Kh7 {[%clk 0:00:32.5]} 37. Re7 {[%clk 0:00:02.6]}
37... Nxg2 {[%clk 0:00:30.5]} 38. Kh1 {[%clk 0:00:03.2]} 38... Nh4 {[%clk
0:00:29.6]} 39. Rdd7 {[%clk 0:00:02.5]} 39... Nxf3 {[%clk 0:00:28]} 40. Rxg7+
{[%clk 0:00:02.1]} 40... Kh6 {[%clk 0:00:28.6]} 41. Rh7+ {[%clk 0:00:01.9]}
41... Kg5 {[%clk 0:00:28.9]} 42. Rhg7+ {[%clk 0:00:02.4]} 42... Kh4 {[%clk
0:00:27.2]} 43. Rg2 {[%clk 0:00:02.6]} 43... Ra1+ {[%clk 0:00:25.8]} 44. Rg1
{[%clk 0:00:01.4]} 44... Rxg1# {[%clk 0:00:25.6]} 0-1

[Event "Early-Titled-Tuesday-Blitz-July-09-2024"]
[Site "Chess.com"]
[Date "2024.07.09"]
[Round "7"]
[White "Flaccidmoves"]
[Black "EternalNight8"]
[Result "1/2-1/2"]
[WhiteElo "2578"]
[BlackElo "2392"]
[TimeControl "180+1"]
[EndTime "9:20:02 PDT"]
[Termination "Game drawn - insufficient material"]

1. Nf3 {[%clk 0:03:00.9]} 1... Nf6 {[%clk 0:02:59.5]} 2. g3 {[%clk 0:03:00.6]}
2... g6 {[%clk 0:02:59.3]} 3. Bg2 {[%clk 0:03:01.1]} 3... Bg7 {[%clk 0:02:59.2]}
4. O-O {[%clk 0:03:01.8]} 4... O-O {[%clk 0:02:59.5]} 5. d4 {[%clk 0:03:02.3]}
5... d5 {[%clk 0:02:59.2]} 6. c4 {[%clk 0:03:02.6]} 6... c6 {[%clk 0:02:59.5]}
7. cxd5 {[%clk 0:03:03.2]} 7... cxd5 {[%clk 0:02:59.9]} 8. Ne5 {[%clk
0:03:03.8]} 8... Ne4 {[%clk 0:02:55.5]} 9. Nd2 {[%clk 0:02:48.7]} 9... Nxd2
{[%clk 0:02:48.8]} 10. Bxd2 {[%clk 0:02:48.6]} 10... Nd7 {[%clk 0:02:46.9]} 11.
Nxd7 {[%clk 0:02:39.5]} 11... Bxd7 {[%clk 0:02:45.1]} 12. e3 {[%clk 0:02:33.6]}
12... Bb5 {[%clk 0:02:41.5]} 13. Re1 {[%clk 0:02:29.4]} 13... a5 {[%clk
0:02:39.6]} 14. a4 {[%clk 0:02:26.1]} 14... Ba6 {[%clk 0:02:38.5]} 15. Qb3
{[%clk 0:02:25]} 15... Bc4 {[%clk 0:02:35.6]} 16. Qa3 {[%clk 0:02:20.1]} 16...
Qd7 {[%clk 0:02:20.4]} 17. b3 {[%clk 0:02:17.4]} 17... Bd3 {[%clk 0:02:20.3]}
18. Rac1 {[%clk 0:02:04.7]} 18... Be4 {[%clk 0:02:12.4]} 19. f3 {[%clk
0:01:46.2]} 19... Bf5 {[%clk 0:02:12.4]} 20. Bf1 {[%clk 0:01:41.4]} 20... Rfc8
{[%clk 0:01:33.5]} 21. Bb5 {[%clk 0:01:35.4]} 21... Qd8 {[%clk 0:01:29.9]} 22.
Kg2 {[%clk 0:01:15]} 22... e5 {[%clk 0:01:27.5]} 23. dxe5 {[%clk 0:01:09.9]}
23... Bxe5 {[%clk 0:01:28.4]} 24. Rxc8 {[%clk 0:00:58.5]} 24... Rxc8 {[%clk
0:01:27.9]} 25. Rc1 {[%clk 0:00:58.4]} 25... Rxc1 {[%clk 0:01:19.3]} 26. Qxc1
{[%clk 0:00:59.3]} 26... d4 {[%clk 0:01:18.9]} 27. e4 {[%clk 0:00:54.4]} 27...
Be6 {[%clk 0:01:18.8]} 28. f4 {[%clk 0:00:48.3]} 28... Bg7 {[%clk 0:01:18.2]}
29. Qc5 {[%clk 0:00:40.7]} 29... Bxb3 {[%clk 0:01:16.3]} 30. h4 {[%clk
0:00:28.2]} 30... h5 {[%clk 0:01:15.5]} 31. f5 {[%clk 0:00:27.5]} 31... gxf5
{[%clk 0:01:07.4]} 32. Qxf5 {[%clk 0:00:25.6]} 32... Qe7 {[%clk 0:00:54.8]} 33.
Bd3 {[%clk 0:00:23.5]} 33... Qe5 {[%clk 0:00:49.4]} 34. Bxa5 {[%clk 0:00:15.9]}
34... Qxf5 {[%clk 0:00:47.5]} 35. exf5 {[%clk 0:00:15.9]} 35... Bxa4 {[%clk
0:00:47.7]} 36. Bb6 {[%clk 0:00:16.4]} 36... Bc6+ {[%clk 0:00:46.6]} 37. Kf2
{[%clk 0:00:16.4]} 37... Be5 {[%clk 0:00:42.2]} 38. Be2 {[%clk 0:00:16.5]} 38...
Be4 {[%clk 0:00:41.6]} 39. Bxh5 {[%clk 0:00:16.3]} 39... Bxf5 {[%clk 0:00:41.8]}
40. Bd1 {[%clk 0:00:14.8]} 40... Be4 {[%clk 0:00:40]} 41. g4 {[%clk 0:00:14.2]}
41... Bc6 {[%clk 0:00:33]} 42. h5 {[%clk 0:00:13.9]} 42... Kg7 {[%clk
0:00:32.7]} 43. g5 {[%clk 0:00:13.9]} 43... Be4 {[%clk 0:00:30.3]} 44. Bf3
{[%clk 0:00:12.2]} 44... Bxf3 {[%clk 0:00:21.5]} 45. Kxf3 {[%clk 0:00:13.1]}
45... f6 {[%clk 0:00:21.9]} 46. gxf6+ {[%clk 0:00:11.9]} 46... Bxf6 {[%clk
0:00:19.9]} 47. Ke4 {[%clk 0:00:12.3]} 47... Kh6 {[%clk 0:00:19.9]} 48. Bxd4
{[%clk 0:00:12.3]} 48... Bxd4 {[%clk 0:00:19.5]} 49. Kxd4 {[%clk 0:00:13.2]}
49... Kxh5 {[%clk 0:00:19.6]} 50. Kc5 {[%clk 0:00:14.1]} 50... Kg6 {[%clk
0:00:19.8]} 51. Kb6 {[%clk 0:00:15]} 51... Kf5 {[%clk 0:00:20.2]} 52. Kxb7
{[%clk 0:00:15.9]} 1/2-1/2

[Event "Early-Titled-Tuesday-Blitz-July-09-2024"]
[Site "Chess.com"]
[Date "2024.07.09"]
[Round "7"]
[White "dey2580"]
[Black "JJDAREK"]
[Result "1/2-1/2"]
[WhiteElo "2454"]
[BlackElo "2352"]
[TimeControl "180+1"]
[EndTime "9:20:02 PDT"]
[Termination "Game drawn by repetition"]

1. Nf3 {[%clk 0:03:00.9]} 1... g6 {[%clk 0:02:59.2]} 2. g3 {[%clk 0:02:59.8]}
2... Bg7 {[%clk 0:02:58.7]} 3. Bg2 {[%clk 0:02:58]} 3... c5 {[%clk 0:02:57.9]}
4. O-O {[%clk 0:02:57.4]} 4... Nc6 {[%clk 0:02:57.8]} 5. c3 {[%clk 0:02:57]}
5... e5 {[%clk 0:02:53.2]} 6. e4 {[%clk 0:02:53.7]} 6... Nge7 {[%clk 0:02:50.5]}
7. d4 {[%clk 0:02:46.4]} 7... exd4 {[%clk 0:02:46.5]} 8. cxd4 {[%clk 0:02:41.8]}
8... Nxd4 {[%clk 0:02:46.4]} 9. Nxd4 {[%clk 0:02:40.1]} 9... cxd4 {[%clk
0:02:46.4]} 10. Na3 {[%clk 0:02:36.2]} 10... O-O {[%clk 0:02:45.9]} 11. Nb5
{[%clk 0:02:34.7]} 11... d5 {[%clk 0:02:28.7]} 12. Bf4 {[%clk 0:02:32.2]} 12...
dxe4 {[%clk 0:01:51.5]} 13. Bxe4 {[%clk 0:02:24.2]} 13... a6 {[%clk 0:01:31.1]}
14. Nd6 {[%clk 0:02:12.9]} 14... Qb6 {[%clk 0:01:11.5]} 15. Qd2 {[%clk
0:01:59.8]} 15... Nc6 {[%clk 0:01:04.1]} 16. Rfc1 {[%clk 0:01:55.2]} 16... Be6
{[%clk 0:00:59.7]} 17. Nxb7 {[%clk 0:01:54.3]} 17... Qxb7 {[%clk 0:00:44.1]} 18.
Rxc6 {[%clk 0:01:51.7]} 18... Bd7 {[%clk 0:00:31]} 19. Rxg6 {[%clk 0:00:14]}
19... Qxe4 {[%clk 0:00:27.4]} 20. Rxg7+ {[%clk 0:00:13.7]} 20... Kxg7 {[%clk
0:00:26.7]} 21. Re1 {[%clk 0:00:14.3]} 21... Qd5 {[%clk 0:00:10.6]} 22. Re5
{[%clk 0:00:13.3]} 22... Qc6 {[%clk 0:00:08.2]} 23. Qxd4 {[%clk 0:00:11.3]}
23... f6 {[%clk 0:00:07.5]} 24. Re7+ {[%clk 0:00:10.6]} 24... Rf7 {[%clk
0:00:07.8]} 25. Bh6+ {[%clk 0:00:09.1]} 25... Kxh6 {[%clk 0:00:04.2]} 26. Rxf7
{[%clk 0:00:08.9]} 26... Qc1+ {[%clk 0:00:03.4]} 27. Kg2 {[%clk 0:00:08.5]}
27... Bc6+ {[%clk 0:00:03.7]} 28. f3 {[%clk 0:00:08.5]} 28... Qc2+ {[%clk
0:00:03]} 29. Kg1 {[%clk 0:00:07.5]} 29... Qc1+ {[%clk 0:00:02.8]} 30. Kg2
{[%clk 0:00:07.2]} 30... Qc2+ {[%clk 0:00:03]} 31. Kg1 {[%clk 0:00:06]} 31...
Qc1+ {[%clk 0:00:03.3]} 32. Kf2 {[%clk 0:00:05.6]} 32... Qc2+ {[%clk 0:00:03.6]}
33. Kg1 {[%clk 0:00:05.3]} 1/2-1/2

[Event "Early-Titled-Tuesday-Blitz-July-09-2024"]
[Site "Chess.com"]
[Date "2024.07.09"]
[Round "7"]
[White "YaWaleriy"]
[Black "mouseslips_are_the_best"]
[Result "1-0"]
[WhiteElo "2443"]
[BlackElo "2313"]
[TimeControl "180+1"]
[EndTime "9:20:02 PDT"]
[Termination "YaWaleriy won by resignation"]

1. d4 {[%clk 0:03:00.9]} 1... Nf6 {[%clk 0:02:58.7]} 2. Nf3 {[%clk 0:03:00.1]}
2... g6 {[%clk 0:02:58.1]} 3. c4 {[%clk 0:02:59.6]} 3... Bg7 {[%clk 0:02:58.1]}
4. Nc3 {[%clk 0:02:59.8]} 4... d6 {[%clk 0:02:55.2]} 5. e4 {[%clk 0:02:59.4]}
5... O-O {[%clk 0:02:55.4]} 6. Be2 {[%clk 0:02:59.9]} 6... e5 {[%clk 0:02:55.4]}
7. d5 {[%clk 0:02:59.4]} 7... a5 {[%clk 0:02:54.9]} 8. Bg5 {[%clk 0:02:59.1]}
8... h6 {[%clk 0:02:53.7]} 9. Bh4 {[%clk 0:02:58.5]} 9... Na6 {[%clk 0:02:54.3]}
10. Nd2 {[%clk 0:02:58.1]} 10... Qe8 {[%clk 0:02:52.9]} 11. a3 {[%clk 0:02:57]}
11... Nh7 {[%clk 0:02:53.1]} 12. b4 {[%clk 0:02:54.5]} 12... Bd7 {[%clk
0:02:48]} 13. Rb1 {[%clk 0:02:53.4]} 13... h5 {[%clk 0:02:45.8]} 14. f3 {[%clk
0:02:51.9]} 14... Bf6 {[%clk 0:02:44.3]} 15. Bf2 {[%clk 0:02:50.3]} 15... Qe7
{[%clk 0:02:44]} 16. O-O {[%clk 0:02:49.3]} 16... Bh4 {[%clk 0:02:43.8]} 17. Qe1
{[%clk 0:02:00.8]} 17... Bxf2+ {[%clk 0:02:37.2]} 18. Qxf2 {[%clk 0:02:00.6]}
18... Qg5 {[%clk 0:02:36.1]} 19. Rfd1 {[%clk 0:01:57.1]} 19... h4 {[%clk
0:02:31.6]} 20. c5 {[%clk 0:01:55.6]} 20... Nf6 {[%clk 0:02:26.9]} 21. c6 {[%clk
0:01:54.7]} 21... bxc6 {[%clk 0:02:25.9]} 22. dxc6 {[%clk 0:01:54.4]} 22... Be6
{[%clk 0:02:26.4]} 23. Bc4 {[%clk 0:01:44.9]} 23... Nh5 {[%clk 0:02:10.1]} 24.
Kh1 {[%clk 0:01:39.7]} 24... Ng3+ {[%clk 0:02:02.5]} 25. Kg1 {[%clk 0:01:36.7]}
25... Nh5 {[%clk 0:01:53.2]} 26. Kf1 {[%clk 0:01:06.6]} 26... Nf4 {[%clk
0:01:41.7]} 27. Nd5 {[%clk 0:00:51.5]} 27... Bxd5 {[%clk 0:01:28]} 28. Bxd5
{[%clk 0:00:49]} 28... h3 {[%clk 0:01:27.3]} 29. g3 {[%clk 0:00:47.6]} 29... Ng2
{[%clk 0:01:07.6]} 30. Nc4 {[%clk 0:00:32.1]} 30... Kg7 {[%clk 0:01:06.7]} 31.
b5 {[%clk 0:00:25.8]} 31... Nc5 {[%clk 0:01:02.6]} 32. b6 {[%clk 0:00:24.8]}
32... cxb6 {[%clk 0:01:00]} 33. Rxb6 {[%clk 0:00:23.4]} 33... Rab8 {[%clk
0:00:58.5]} 34. Rdb1 {[%clk 0:00:14]} 34... Rxb6 {[%clk 0:00:56.4]} 35. Nxb6
{[%clk 0:00:11.3]} 35... Nd3 {[%clk 0:00:50.9]} 36. Qe2 {[%clk 0:00:09.1]} 36...
Qe3 {[%clk 0:00:37.6]} 37. Qxe3 {[%clk 0:00:07.7]} 37... Nxe3+ {[%clk 0:00:37]}
38. Ke2 {[%clk 0:00:08.1]} 38... Nxd5 {[%clk 0:00:34.7]} 39. exd5 {[%clk
0:00:07.8]} 39... Nc5 {[%clk 0:00:32.5]} 40. c7 {[%clk 0:00:07.3]} 40... f5
{[%clk 0:00:30.7]} 41. c8=Q {[%clk 0:00:06.4]} 41... Rxc8 {[%clk 0:00:31.3]} 42.
Nxc8 {[%clk 0:00:06.5]} 1-0

[Event "Early-Titled-Tuesday-Blitz-July-09-2024"]
[Site "Chess.com"]
[Date "2024.07.09"]
[Round "7"]
[White "Dewarfd"]
[Black "JavierRuizVazquez"]
[Result "0-1"]
[WhiteElo "2085"]
[BlackElo "2392"]
[TimeControl "180+1"]
[EndTime "9:20:05 PDT"]
[Termination "JavierRuizVazquez won on time"]

1. Nf3 {[%clk 0:03:00.9]} 1... Nf6 {[%clk 0:02:57.4]} 2. e3 {[%clk 0:02:57.4]}
2... g6 {[%clk 0:02:56.2]} 3. b4 {[%clk 0:02:53.7]} 3... Bg7 {[%clk 0:02:55.8]}
4. Bb2 {[%clk 0:02:54.1]} 4... O-O {[%clk 0:02:55.5]} 5. c4 {[%clk 0:02:53.4]}
5... d6 {[%clk 0:02:44.3]} 6. d4 {[%clk 0:02:52.5]} 6... Nbd7 {[%clk 0:02:44.3]}
7. Be2 {[%clk 0:02:51.5]} 7... c5 {[%clk 0:02:43.4]} 8. a3 {[%clk 0:02:47.9]}
8... Qb6 {[%clk 0:02:40]} 9. Qb3 {[%clk 0:02:23.1]} 9... Ne4 {[%clk 0:02:28.6]}
10. O-O {[%clk 0:02:07.6]} 10... Ndf6 {[%clk 0:02:21.9]} 11. Rd1 {[%clk
0:01:58.2]} 11... Be6 {[%clk 0:01:58.3]} 12. d5 {[%clk 0:01:52.3]} 12... Bg4
{[%clk 0:01:53.7]} 13. b5 {[%clk 0:01:47.7]} 13... a6 {[%clk 0:01:50.3]} 14. a4
{[%clk 0:01:46.2]} 14... axb5 {[%clk 0:01:50.6]} 15. axb5 {[%clk 0:01:46.1]}
15... Rxa1 {[%clk 0:01:50.9]} 16. Bxa1 {[%clk 0:01:46.7]} 16... Nxf2 {[%clk
0:01:18.2]} 17. Bxf6 {[%clk 0:01:25.5]} 17... Nxd1 {[%clk 0:01:18]} 18. Bxg7
{[%clk 0:01:24.2]} 18... Kxg7 {[%clk 0:01:12.4]} 19. Bxd1 {[%clk 0:01:15.8]}
19... Ra8 {[%clk 0:01:10.9]} 20. h3 {[%clk 0:01:15.4]} 20... Bf5 {[%clk
0:01:07.1]} 21. Bc2 {[%clk 0:01:11.4]} 21... Bxc2 {[%clk 0:01:01.7]} 22. Qxc2
{[%clk 0:01:09.8]} 22... f6 {[%clk 0:00:56.8]} 23. Nc3 {[%clk 0:01:02.1]} 23...
Ra1+ {[%clk 0:00:53.2]} 24. Kh2 {[%clk 0:01:02]} 24... Qa5 {[%clk 0:00:51.2]}
25. Ne2 {[%clk 0:00:46.1]} 25... Qa2 {[%clk 0:00:43.3]} 26. Qd3 {[%clk 0:00:38]}
26... Qb1 {[%clk 0:00:35.4]} 27. Qxb1 {[%clk 0:00:20.1]} 27... Rxb1 {[%clk
0:00:36.3]} 28. Nf4 {[%clk 0:00:20.3]} 28... Rc1 {[%clk 0:00:25.8]} 29. Ne6+
{[%clk 0:00:16.5]} 29... Kg8 {[%clk 0:00:26.2]} 30. Nd2 {[%clk 0:00:14.7]} 30...
Rc2 {[%clk 0:00:25.8]} 31. Nb3 {[%clk 0:00:14.7]} 31... Rxc4 {[%clk 0:00:24.2]}
32. Na5 {[%clk 0:00:13.8]} 32... Rb4 {[%clk 0:00:21.5]} 33. Nxb7 {[%clk
0:00:11.9]} 33... Rxb5 {[%clk 0:00:21]} 34. Nbd8 {[%clk 0:00:10.6]} 34... c4
{[%clk 0:00:18.8]} 35. e4 {[%clk 0:00:09.3]} 35... c3 {[%clk 0:00:18.1]} 36. Nd4
{[%clk 0:00:08.6]} 36... Rb2 {[%clk 0:00:17.4]} 37. N8c6 {[%clk 0:00:05.8]}
37... Kf7 {[%clk 0:00:13.2]} 38. Kg3 {[%clk 0:00:04.6]} 38... c2 {[%clk
0:00:12.6]} 39. Ne2 {[%clk 0:00:02.3]} 39... Rb3+ {[%clk 0:00:12.1]} 40. Kf2
{[%clk 0:00:01]} 40... Rc3 {[%clk 0:00:10.9]} 0-1

[Event "Early-Titled-Tuesday-Blitz-July-09-2024"]
[Site "Chess.com"]
[Date "2024.07.09"]
[Round "7"]
[White "zsizsi99"]
[Black "Bkmzzzzz"]
[Result "1-0"]
[WhiteElo "2541"]
[BlackElo "2417"]
[TimeControl "180+1"]
[EndTime "9:20:06 PDT"]
[Termination "zsizsi99 won by resignation"]

1. e4 {[%clk 0:03:00.9]} 1... d6 {[%clk 0:02:59.6]} 2. d4 {[%clk 0:02:57.2]}
2... Nf6 {[%clk 0:03:00]} 3. Nc3 {[%clk 0:02:56.8]} 3... e5 {[%clk 0:03:00.7]}
4. Nf3 {[%clk 0:02:55]} 4... Nbd7 {[%clk 0:03:00.1]} 5. Rg1 {[%clk 0:02:53.6]}
5... g6 {[%clk 0:02:56.7]} 6. g4 {[%clk 0:02:53.4]} 6... Bg7 {[%clk 0:02:57.3]}
7. g5 {[%clk 0:02:43.2]} 7... Nh5 {[%clk 0:02:52.6]} 8. Be3 {[%clk 0:02:39.8]}
8... c6 {[%clk 0:02:37.5]} 9. Qd2 {[%clk 0:02:39.6]} 9... Qa5 {[%clk 0:02:33.9]}
10. O-O-O {[%clk 0:02:36]} 10... O-O {[%clk 0:02:21.4]} 11. Kb1 {[%clk
0:02:32.3]} 11... b5 {[%clk 0:02:20.7]} 12. a3 {[%clk 0:02:27.2]} 12... Rb8
{[%clk 0:02:17.2]} 13. Bh3 {[%clk 0:02:12.9]} 13... Nf4 {[%clk 0:02:01.4]} 14.
Bxd7 {[%clk 0:02:05.8]} 14... Bxd7 {[%clk 0:01:59.9]} 15. dxe5 {[%clk
0:02:05.9]} 15... b4 {[%clk 0:01:39.4]} 16. Na2 {[%clk 0:01:56.8]} 16... Be6
{[%clk 0:01:30.5]} 17. Bxf4 {[%clk 0:01:49.4]} 17... dxe5 {[%clk 0:01:12.2]} 18.
Be3 {[%clk 0:01:42.7]} 18... c5 {[%clk 0:01:08]} 19. Nc1 {[%clk 0:01:26.8]}
19... c4 {[%clk 0:00:55.2]} 20. Qe1 {[%clk 0:00:42.4]} 20... c3 {[%clk 0:00:48]}
21. Nb3 {[%clk 0:00:35.3]} 21... Bxb3 {[%clk 0:00:24.9]} 22. cxb3 {[%clk
0:00:35.3]} 22... bxa3 {[%clk 0:00:17.8]} 23. Qxc3 {[%clk 0:00:35.2]} 23... a2+
{[%clk 0:00:17.6]} 24. Ka1 {[%clk 0:00:35.5]} 24... Qa6 {[%clk 0:00:17.3]} 25.
Qc4 {[%clk 0:00:32.4]} 25... Qb7 {[%clk 0:00:16.7]} 26. Rd5 {[%clk 0:00:24.1]}
26... Rfc8 {[%clk 0:00:17.1]} 27. Rc5 {[%clk 0:00:24.4]} 27... Rd8 {[%clk
0:00:17.6]} 28. Rc1 {[%clk 0:00:22.3]} 28... Bf8 {[%clk 0:00:17.4]} 29. Rc7
{[%clk 0:00:22.2]} 29... Qxb3 {[%clk 0:00:16.3]} 30. Qxb3 {[%clk 0:00:21.7]}
30... Rxb3 {[%clk 0:00:17.2]} 31. Kxa2 {[%clk 0:00:21.8]} 31... Rb5 {[%clk
0:00:17.2]} 32. Rxa7 {[%clk 0:00:22.1]} 32... Rdb8 {[%clk 0:00:17.2]} 33. Rc2
{[%clk 0:00:21.7]} 33... Rb4 {[%clk 0:00:17.4]} 34. Nd2 {[%clk 0:00:21.5]} 34...
R4b5 {[%clk 0:00:14.8]} 35. b3 {[%clk 0:00:20.6]} 35... Re8 {[%clk 0:00:14.9]}
36. Rcc7 {[%clk 0:00:20.2]} 36... Rd8 {[%clk 0:00:15.2]} 37. Rxf7 {[%clk
0:00:19.6]} 37... Rb4 {[%clk 0:00:13.7]} 38. Rxh7 {[%clk 0:00:19.1]} 38... Rbb8
{[%clk 0:00:12.4]} 39. Rhd7 {[%clk 0:00:18.1]} 39... Rdc8 {[%clk 0:00:11.9]} 40.
Nc4 {[%clk 0:00:18.5]} 40... Rb4 {[%clk 0:00:10.5]} 41. Bd2 {[%clk 0:00:17.8]}
41... Rb5 {[%clk 0:00:10.5]} 42. Bc3 {[%clk 0:00:17.8]} 42... Rbc5 {[%clk
0:00:10.1]} 43. Bxe5 {[%clk 0:00:17.9]} 43... Re8 {[%clk 0:00:08.5]} 44. Bd6
{[%clk 0:00:17.8]} 44... Bg7 {[%clk 0:00:07.6]} 45. Rxg7+ {[%clk 0:00:17.5]} 1-0